[Event "Titled Tuesday Blitz January 31 Late 2023"]
[White "Melkumyan, Hrant"]
[Black "Taspinar, Yanki"]
[WhiteFideId "13302485"]
[BlackFideId "34561188"]
[WhiteElo "2645"]
[BlackElo "2262"]
[Result "1-0"]
[Round "10"]
[TimeControl "180+2"]
[Date "2023.01.31"]
[WhiteClock "0:00:39"]
[BlackClock "0:00:01"]

1. e4 {[%clk 0:02:53]}  e5 {[%clk 0:02:59]} 2. Nf3 {[%clk 0:02:53]}  Nc6 {[%clk 0:03:00]} 3. Bb5 {[%clk 0:02:51]}  a6 {[%clk 0:02:58]} 4. Ba4 {[%clk 0:02:51]}  d6 {[%clk 0:02:58]} 5. c3 {[%clk 0:02:50]}  Bd7 {[%clk 0:02:58]} 6. d4 {[%clk 0:02:50]}  exd4 {[%clk 0:02:49]} 7. cxd4 {[%clk 0:02:49]}  g6 {[%clk 0:02:49]} 8. Nc3 {[%clk 0:02:47]}  h6 {[%clk 0:02:45]} 9. O-O {[%clk 0:02:46]}  Bg7 {[%clk 0:02:45]} 10. Re1 {[%clk 0:02:44]}  Nge7 {[%clk 0:02:45]} 11. d5 {[%clk 0:02:33]}  Ne5 {[%clk 0:02:43]} 12. Nxe5 {[%clk 0:02:33]}  Bxe5 {[%clk 0:02:42]} 13. f4 {[%clk 0:02:33]}  Bg7 {[%clk 0:02:40]} 14. e5 {[%clk 0:02:34]}  O-O {[%clk 0:02:37]} 15. Bxd7 {[%clk 0:02:23]}  Qxd7 {[%clk 0:02:37]} 16. e6 {[%clk 0:02:00]}  fxe6 {[%clk 0:02:33]} 17. Rxe6 {[%clk 0:02:01]}  Rae8 {[%clk 0:02:10]} 18. Qb3 {[%clk 0:01:54]}  Nf5 {[%clk 0:01:56]} 19. Qxb7 {[%clk 0:01:33]}  Rxe6 {[%clk 0:01:55]} 20. dxe6 {[%clk 0:01:34]}  Qxe6 {[%clk 0:01:56]} 21. Qd5 {[%clk 0:01:32]}  Qxd5 {[%clk 0:01:16]} 22. Nxd5 {[%clk 0:01:33]}  Re8 {[%clk 0:01:16]} 23. Kf1 {[%clk 0:01:31]}  c6 {[%clk 0:01:11]} 24. Nb4 {[%clk 0:01:30]}  c5 {[%clk 0:01:06]} 25. Nxa6 {[%clk 0:01:24]}  Re7 {[%clk 0:00:42]} 26. a4 {[%clk 0:01:11]}  Ra7 {[%clk 0:00:41]} 27. Nb8 {[%clk 0:01:10]}  Nd4 {[%clk 0:00:27]} 28. Ra3 {[%clk 0:01:04]}  Rb7 {[%clk 0:00:22]} 29. Na6 {[%clk 0:01:04]}  Ra7 {[%clk 0:00:21]} 30. Nb8 {[%clk 0:01:05]}  Rb7 {[%clk 0:00:13]} 31. Na6 {[%clk 0:01:04]}  Ra7 {[%clk 0:00:06]} 32. Nxc5 {[%clk 0:01:05]}  dxc5 {[%clk 0:00:06]} 33. Bd2 {[%clk 0:01:06]}  Kf7 {[%clk 0:00:06]} 34. a5 {[%clk 0:01:01]}  Ke6 {[%clk 0:00:07]} 35. Re3+ {[%clk 0:00:50]}  Kd5 {[%clk 0:00:07]} 36. Rg3 {[%clk 0:00:51]}  Ra6 {[%clk 0:00:06]} 37. h4 {[%clk 0:00:50]}  Nf5 {[%clk 0:00:06]} 38. Rh3 {[%clk 0:00:50]}  h5 {[%clk 0:00:06]} 39. b4 {[%clk 0:00:48]}  cxb4 {[%clk 0:00:04]} 40. Bxb4 {[%clk 0:00:49]}  Bd4 {[%clk 0:00:04]} 41. Be1 {[%clk 0:00:48]}  Ke4 {[%clk 0:00:03]} 42. Rf3 {[%clk 0:00:43]}  Ne3+ {[%clk 0:00:02]} 43. Kg1 {[%clk 0:00:40]}  Nc2+ {[%clk 0:00:01]} 44. Bf2 {[%clk 0:00:39]} 1-0


[Site "https://www.chess.com"]

[Event "Titled Tuesday Blitz January 31 Late 2023"]
[White "Galchenko, Matvey"]
[Black "Tan, Zhongyi"]
[WhiteFideId "24175480"]
[BlackFideId "8603642"]
[WhiteElo "2438"]
[BlackElo "2517"]
[Result "0-1"]
[Round "10"]
[TimeControl "180+2"]
[Date "2023.01.31"]
[WhiteClock "0:00:11"]
[BlackClock "0:00:06"]

1. f4 {[%clk 0:03:00]}  d5 {[%clk 0:02:58]} 2. Nf3 {[%clk 0:03:01]}  c5 {[%clk 0:02:57]} 3. g3 {[%clk 0:03:01]}  Nc6 {[%clk 0:02:57]} 4. Bg2 {[%clk 0:03:02]}  g6 {[%clk 0:02:54]} 5. O-O {[%clk 0:03:03]}  Bg7 {[%clk 0:02:54]} 6. d3 {[%clk 0:03:03]}  Nf6 {[%clk 0:02:52]} 7. Nc3 {[%clk 0:03:03]}  d4 {[%clk 0:02:51]} 8. Na4 {[%clk 0:03:04]}  Nd7 {[%clk 0:02:49]} 9. c4 {[%clk 0:03:03]}  O-O {[%clk 0:02:48]} 10. a3 {[%clk 0:03:02]}  Rb8 {[%clk 0:02:45]} 11. b4 {[%clk 0:02:58]}  b6 {[%clk 0:02:44]} 12. Rb1 {[%clk 0:02:57]}  Qc7 {[%clk 0:02:43]} 13. e4 {[%clk 0:02:55]}  dxe3 {[%clk 0:02:38]} 14. Bxe3 {[%clk 0:02:55]}  Nd4 {[%clk 0:02:33]} 15. Bxd4 {[%clk 0:02:34]}  cxd4 {[%clk 0:02:32]} 16. Qe2 {[%clk 0:02:34]}  Re8 {[%clk 0:02:24]} 17. Nb2 {[%clk 0:02:07]}  Bb7 {[%clk 0:02:21]} 18. Nh4 {[%clk 0:02:05]}  Bxg2 {[%clk 0:02:07]} 19. Qxg2 {[%clk 0:02:06]}  Nf6 {[%clk 0:02:07]} 20. h3 {[%clk 0:02:02]}  e5 {[%clk 0:02:05]} 21. fxe5 {[%clk 0:01:53]}  Rxe5 {[%clk 0:01:59]} 22. Nf3 {[%clk 0:01:49]}  Re3 {[%clk 0:01:57]} 23. Rbe1 {[%clk 0:01:47]}  Rbe8 {[%clk 0:01:57]} 24. Rxe3 {[%clk 0:01:47]}  dxe3 {[%clk 0:01:51]} 25. Re1 {[%clk 0:01:45]}  Nh5 {[%clk 0:01:46]} 26. Nd1 {[%clk 0:01:46]}  e2 {[%clk 0:01:25]} 27. Rxe2 {[%clk 0:01:26]}  Rxe2 {[%clk 0:01:26]} 28. Qxe2 {[%clk 0:01:27]}  Qxg3+ {[%clk 0:01:23]} 29. Qg2 {[%clk 0:01:20]}  Qf4 {[%clk 0:01:17]} 30. Qf2 {[%clk 0:01:02]}  Qc1 {[%clk 0:01:12]} 31. Qe1 {[%clk 0:01:01]}  Nf4 {[%clk 0:01:04]} 32. Ng5 {[%clk 0:00:44]}  Bd4+ {[%clk 0:00:50]} 33. Kh1 {[%clk 0:00:44]}  Kg7 {[%clk 0:00:46]} 34. Qf1 {[%clk 0:00:41]}  h6 {[%clk 0:00:36]} 35. Nf3 {[%clk 0:00:41]}  Bf6 {[%clk 0:00:30]} 36. a4 {[%clk 0:00:35]}  Nxh3 {[%clk 0:00:28]} 37. Kh2 {[%clk 0:00:31]}  Nf4 {[%clk 0:00:25]} 38. a5 {[%clk 0:00:28]}  Qc2+ {[%clk 0:00:24]} 39. Nf2 {[%clk 0:00:21]}  Nxd3 {[%clk 0:00:23]} 40. Qxd3 {[%clk 0:00:22]}  Qxf2+ {[%clk 0:00:23]} 41. Kh1 {[%clk 0:00:20]}  bxa5 {[%clk 0:00:20]} 42. bxa5 {[%clk 0:00:21]}  h5 {[%clk 0:00:18]} 43. Nd2 {[%clk 0:00:19]}  Bd4 {[%clk 0:00:17]} 44. Nf3 {[%clk 0:00:19]}  Be3 {[%clk 0:00:15]} 45. Qe4 {[%clk 0:00:19]}  Qf1+ {[%clk 0:00:12]} 46. Kh2 {[%clk 0:00:20]}  Qe2+ {[%clk 0:00:12]} 47. Kh1 {[%clk 0:00:20]}  Qf1+ {[%clk 0:00:09]} 48. Kh2 {[%clk 0:00:20]}  Qf2+ {[%clk 0:00:09]} 49. Kh1 {[%clk 0:00:21]}  h4 {[%clk 0:00:09]} 50. Qe5+ {[%clk 0:00:18]}  Kh7 {[%clk 0:00:09]} 51. Qf6 {[%clk 0:00:15]}  Qf1+ {[%clk 0:00:06]} 52. Kh2 {[%clk 0:00:15]}  Bg1+ {[%clk 0:00:06]} 53. Kh1 {[%clk 0:00:10]}  Bf2+ {[%clk 0:00:06]} 54. Kh2 {[%clk 0:00:11]}  Bg3# {[%clk 0:00:06]} 0-1


[Site "https://www.chess.com"]

[Event "Titled Tuesday Blitz January 31 Late 2023"]
[White "Bryakin, Mikhail"]
[Black "Kanakaris, Georgios"]
[WhiteFideId "4165314"]
[BlackFideId "4209460"]
[WhiteElo "2455"]
[BlackElo "2391"]
[Result "1-0"]
[Round "10"]
[TimeControl "180+2"]
[Date "2023.01.31"]
[WhiteClock "0:02:23"]
[BlackClock "0:00:22"]

1. Nf3 {[%clk 0:02:59]}  Nf6 {[%clk 0:02:58]} 2. b3 {[%clk 0:02:56]}  g6 {[%clk 0:02:58]} 3. Bb2 {[%clk 0:02:57]}  Bg7 {[%clk 0:02:58]} 4. g3 {[%clk 0:02:58]}  d6 {[%clk 0:02:56]} 5. Bg2 {[%clk 0:02:58]}  e5 {[%clk 0:02:56]} 6. O-O {[%clk 0:02:58]}  Nc6 {[%clk 0:02:56]} 7. d4 {[%clk 0:02:57]}  exd4 {[%clk 0:02:55]} 8. Nxd4 {[%clk 0:02:57]}  Nxd4 {[%clk 0:02:54]} 9. Qxd4 {[%clk 0:02:57]}  Nh5 {[%clk 0:02:52]} 10. Qe3+ {[%clk 0:02:55]}  Qe7 {[%clk 0:02:53]} 11. Qxe7+ {[%clk 0:02:54]}  Kxe7 {[%clk 0:02:54]} 12. Bxg7 {[%clk 0:02:54]}  Nxg7 {[%clk 0:02:54]} 13. Nc3 {[%clk 0:02:49]}  c6 {[%clk 0:02:55]} 14. e4 {[%clk 0:02:46]}  Ne6 {[%clk 0:02:52]} 15. f4 {[%clk 0:02:46]}  f6 {[%clk 0:02:47]} 16. Rad1 {[%clk 0:02:45]}  Bd7 {[%clk 0:02:45]} 17. Rd2 {[%clk 0:02:46]}  Rad8 {[%clk 0:02:46]} 18. Rfd1 {[%clk 0:02:46]}  Bc8 {[%clk 0:02:46]} 19. Kf2 {[%clk 0:02:44]}  g5 {[%clk 0:02:38]} 20. Ke3 {[%clk 0:02:44]}  gxf4+ {[%clk 0:02:29]} 21. gxf4 {[%clk 0:02:43]}  Rhg8 {[%clk 0:02:28]} 22. Bf3 {[%clk 0:02:44]}  Nf8 {[%clk 0:02:19]} 23. Ne2 {[%clk 0:02:42]}  Ng6 {[%clk 0:02:18]} 24. Ng3 {[%clk 0:02:43]}  Nh4 {[%clk 0:02:17]} 25. Be2 {[%clk 0:02:41]}  Ng2+ {[%clk 0:02:12]} 26. Kf3 {[%clk 0:02:41]}  Nh4+ {[%clk 0:02:12]} 27. Kf2 {[%clk 0:02:42]}  Bg4 {[%clk 0:01:48]} 28. Bxg4 {[%clk 0:02:31]}  Rxg4 {[%clk 0:01:49]} 29. Ke3 {[%clk 0:02:32]}  Ke6 {[%clk 0:01:34]} 30. c4 {[%clk 0:02:30]}  b6 {[%clk 0:01:16]} 31. b4 {[%clk 0:02:29]}  c5 {[%clk 0:00:50]} 32. bxc5 {[%clk 0:02:28]}  bxc5 {[%clk 0:00:51]} 33. Rd5 {[%clk 0:02:28]}  Rg7 {[%clk 0:00:39]} 34. Rh5 {[%clk 0:02:27]}  Rg4 {[%clk 0:00:25]} 35. Rxh7 {[%clk 0:02:26]}  f5 {[%clk 0:00:25]} 36. Rh6+ {[%clk 0:02:22]}  Ke7 {[%clk 0:00:23]} 37. Rxh4 {[%clk 0:02:22]}  Rxh4 {[%clk 0:00:22]} 38. Nxf5+ {[%clk 0:02:23]} 1-0


[Site "https://www.chess.com"]

[Event "Titled Tuesday Blitz January 31 Late 2023"]
[White "Vlassov, Nikolai"]
[Black "Tari, Aryan"]
[WhiteFideId "4103360"]
[BlackFideId "1510045"]
[WhiteElo "2283"]
[BlackElo "2642"]
[Result "1-0"]
[Round "10"]
[TimeControl "180+2"]
[Date "2023.01.31"]
[WhiteClock "0:01:49"]
[BlackClock "0:00:26"]

1. e4 {[%clk 0:03:00]}  c5 {[%clk 0:02:52]} 2. c3 {[%clk 0:03:00]}  Nf6 {[%clk 0:02:51]} 3. e5 {[%clk 0:03:00]}  Nd5 {[%clk 0:02:52]} 4. d4 {[%clk 0:03:01]}  e6 {[%clk 0:02:52]} 5. c4 {[%clk 0:02:57]}  Nb6 {[%clk 0:02:39]} 6. dxc5 {[%clk 0:02:57]}  Bxc5 {[%clk 0:02:39]} 7. Qg4 {[%clk 0:02:57]}  Kf8 {[%clk 0:02:08]} 8. Nf3 {[%clk 0:02:56]}  Nc6 {[%clk 0:02:08]} 9. Nc3 {[%clk 0:02:51]}  d6 {[%clk 0:01:31]} 10. Bg5 {[%clk 0:02:48]}  Nxe5 {[%clk 0:01:14]} 11. Nxe5 {[%clk 0:02:32]}  f6 {[%clk 0:01:14]} 12. O-O-O {[%clk 0:02:14]}  fxg5 {[%clk 0:01:11]} 13. Ne4 {[%clk 0:02:12]}  Qc7 {[%clk 0:00:53]} 14. Qxg5 {[%clk 0:02:02]}  Qe7 {[%clk 0:00:27]} 15. Qf4+ {[%clk 0:01:58]}  Kg8 {[%clk 0:00:27]} 16. Nxc5 {[%clk 0:01:54]}  dxc5 {[%clk 0:00:26]} 17. Rd8+ {[%clk 0:01:49]} 1-0


[Site "https://www.chess.com"]

[Event "Titled Tuesday Blitz January 31 Late 2023"]
[White "Baskakov, Egor"]
[Black "Koellner, Ruben Gideon"]
[WhiteFideId "24197866"]
[BlackFideId "12993093"]
[WhiteElo "2215"]
[BlackElo "2426"]
[Result "1-0"]
[Round "10"]
[TimeControl "180+2"]
[Date "2023.01.31"]
[WhiteClock "0:01:55"]
[BlackClock "0:01:14"]

1. e4 {[%clk 0:02:57]}  d6 {[%clk 0:03:00]} 2. g3 {[%clk 0:02:57]}  e5 {[%clk 0:03:00]} 3. Bg2 {[%clk 0:02:57]}  Nf6 {[%clk 0:03:00]} 4. Ne2 {[%clk 0:02:57]}  c5 {[%clk 0:03:01]} 5. c3 {[%clk 0:02:57]}  Nc6 {[%clk 0:03:01]} 6. d4 {[%clk 0:02:57]}  cxd4 {[%clk 0:02:59]} 7. cxd4 {[%clk 0:02:58]}  Qb6 {[%clk 0:02:58]} 8. d5 {[%clk 0:02:58]}  Nd4 {[%clk 0:02:54]} 9. Nxd4 {[%clk 0:02:57]}  exd4 {[%clk 0:02:53]} 10. O-O {[%clk 0:02:54]}  Bg4 {[%clk 0:02:48]} 11. Qa4+ {[%clk 0:02:48]}  Bd7 {[%clk 0:02:47]} 12. Qa3 {[%clk 0:02:47]}  Rc8 {[%clk 0:02:43]} 13. Nd2 {[%clk 0:02:47]}  Be7 {[%clk 0:02:41]} 14. Nb3 {[%clk 0:02:47]}  Rc4 {[%clk 0:02:36]} 15. Qa5 {[%clk 0:02:38]}  O-O {[%clk 0:02:24]} 16. Qxb6 {[%clk 0:02:34]}  axb6 {[%clk 0:02:25]} 17. Rd1 {[%clk 0:02:32]}  Ng4 {[%clk 0:02:01]} 18. Bf4 {[%clk 0:02:18]}  g5 {[%clk 0:01:55]} 19. Bd2 {[%clk 0:02:16]}  Ne5 {[%clk 0:01:49]} 20. f4 {[%clk 0:02:07]}  Bg4 {[%clk 0:01:42]} 21. fxe5 {[%clk 0:02:04]}  Bxd1 {[%clk 0:01:41]} 22. exd6 {[%clk 0:02:04]}  Bxd6 {[%clk 0:01:40]} 23. Rxd1 {[%clk 0:02:04]}  f6 {[%clk 0:01:36]} 24. Bf1 {[%clk 0:02:01]}  Rc2 {[%clk 0:01:34]} 25. Nxd4 {[%clk 0:02:02]}  Bc5 {[%clk 0:01:31]} 26. Bc3 {[%clk 0:02:02]}  Ra8 {[%clk 0:01:14]} 27. Bd3 {[%clk 0:01:55]} 1-0


[Site "https://www.chess.com"]

[Event "Titled Tuesday Blitz January 31 Late 2023"]
[White "Hasanagic, Anel"]
[Black "Pakleza, Zbigniew"]
[WhiteFideId "14605791"]
[BlackFideId "1119290"]
[WhiteElo "2243"]
[BlackElo "2494"]
[Result "0-1"]
[Round "10"]
[TimeControl "180+2"]
[Date "2023.01.31"]
[WhiteClock "0:00:08"]
[BlackClock "0:01:43"]

1. e3 {[%clk 0:02:59]}  d5 {[%clk 0:02:57]} 2. b3 {[%clk 0:02:58]}  Nf6 {[%clk 0:02:57]} 3. Bb2 {[%clk 0:02:56]}  Bf5 {[%clk 0:02:58]} 4. Nf3 {[%clk 0:02:56]}  e6 {[%clk 0:02:58]} 5. Nh4 {[%clk 0:02:55]}  Bg6 {[%clk 0:02:57]} 6. d3 {[%clk 0:02:37]}  c6 {[%clk 0:02:55]} 7. Nd2 {[%clk 0:02:32]}  Bh5 {[%clk 0:02:52]} 8. Nhf3 {[%clk 0:02:04]}  Nbd7 {[%clk 0:02:46]} 9. h3 {[%clk 0:02:03]}  Qc7 {[%clk 0:02:43]} 10. Be2 {[%clk 0:01:38]}  a5 {[%clk 0:02:38]} 11. a4 {[%clk 0:01:36]}  Be7 {[%clk 0:02:34]} 12. d4 {[%clk 0:01:10]}  O-O {[%clk 0:02:21]} 13. O-O {[%clk 0:01:09]}  Rfd8 {[%clk 0:02:09]} 14. Ne1 {[%clk 0:01:06]}  Bxe2 {[%clk 0:02:05]} 15. Qxe2 {[%clk 0:01:07]}  e5 {[%clk 0:02:02]} 16. dxe5 {[%clk 0:01:06]}  Nxe5 {[%clk 0:02:03]} 17. Nd3 {[%clk 0:01:07]}  Bd6 {[%clk 0:02:02]} 18. f4 {[%clk 0:00:28]}  Ned7 {[%clk 0:01:53]} 19. c4 {[%clk 0:00:20]}  Re8 {[%clk 0:01:50]} 20. Rac1 {[%clk 0:00:09]}  Qb6 {[%clk 0:01:43]} 21. Bd4 {[%clk 0:00:07]}  Qxd4 {[%clk 0:01:44]} 22. exd4 {[%clk 0:00:08]}  Rxe2 {[%clk 0:01:43]} 0-1


[Site "https://www.chess.com"]

[Event "Titled Tuesday Blitz January 31 Late 2023"]
[White "Fiorito, Joaquin"]
[Black "Salimova, Nurgyul"]
[WhiteFideId "180173"]
[BlackFideId "2915138"]
[WhiteElo "2405"]
[BlackElo "2391"]
[Result "0-1"]
[Round "10"]
[TimeControl "180+2"]
[Date "2023.01.31"]
[WhiteClock "0:00:01"]
[BlackClock "0:00:05"]

1. d4 {[%clk 0:03:00]}  Nf6 {[%clk 0:02:59]} 2. Nc3 {[%clk 0:03:01]}  d5 {[%clk 0:02:58]} 3. Bf4 {[%clk 0:03:01]}  e6 {[%clk 0:02:54]} 4. Nb5 {[%clk 0:03:01]}  Na6 {[%clk 0:02:54]} 5. e3 {[%clk 0:03:01]}  Be7 {[%clk 0:02:53]} 6. Nf3 {[%clk 0:03:00]}  O-O {[%clk 0:02:52]} 7. Be2 {[%clk 0:03:00]}  c6 {[%clk 0:02:51]} 8. Nc3 {[%clk 0:03:00]}  Nb8 {[%clk 0:02:50]} 9. O-O {[%clk 0:03:00]}  c5 {[%clk 0:02:49]} 10. dxc5 {[%clk 0:03:01]}  Bxc5 {[%clk 0:02:44]} 11. Bd3 {[%clk 0:03:01]}  Nc6 {[%clk 0:02:42]} 12. e4 {[%clk 0:03:02]}  dxe4 {[%clk 0:02:34]} 13. Nxe4 {[%clk 0:03:03]}  Nd5 {[%clk 0:02:30]} 14. Bg3 {[%clk 0:02:33]}  Be7 {[%clk 0:02:28]} 15. a3 {[%clk 0:02:33]}  f5 {[%clk 0:02:22]} 16. c4 {[%clk 0:02:08]}  fxe4 {[%clk 0:02:17]} 17. Bxe4 {[%clk 0:02:08]}  Nf6 {[%clk 0:02:13]} 18. Qe2 {[%clk 0:02:08]}  Nxe4 {[%clk 0:02:06]} 19. Qxe4 {[%clk 0:02:09]}  Qe8 {[%clk 0:02:06]} 20. b4 {[%clk 0:02:07]}  a6 {[%clk 0:02:00]} 21. Rad1 {[%clk 0:02:03]}  Qh5 {[%clk 0:01:57]} 22. h3 {[%clk 0:01:58]}  Bf6 {[%clk 0:01:49]} 23. Bd6 {[%clk 0:01:55]}  Re8 {[%clk 0:01:48]} 24. Rfe1 {[%clk 0:01:54]}  e5 {[%clk 0:01:47]} 25. b5 {[%clk 0:01:53]}  axb5 {[%clk 0:01:46]} 26. cxb5 {[%clk 0:01:53]}  Nd8 {[%clk 0:01:43]} 27. Nxe5 {[%clk 0:01:12]}  Nf7 {[%clk 0:01:39]} 28. f4 {[%clk 0:01:09]}  Nxd6 {[%clk 0:01:31]} 29. Rxd6 {[%clk 0:01:10]}  Bxe5 {[%clk 0:01:22]} 30. fxe5 {[%clk 0:01:11]}  Rxa3 {[%clk 0:01:19]} 31. e6 {[%clk 0:01:09]}  Qc5+ {[%clk 0:01:15]} 32. Qd4 {[%clk 0:01:01]}  Qxd4+ {[%clk 0:01:15]} 33. Rxd4 {[%clk 0:01:01]}  Rb3 {[%clk 0:00:53]} 34. Re5 {[%clk 0:00:25]}  Bxe6 {[%clk 0:00:47]} 35. Rde4 {[%clk 0:00:25]}  Kf7 {[%clk 0:00:47]} 36. Rf4+ {[%clk 0:00:25]}  Kg6 {[%clk 0:00:41]} 37. Rfe4 {[%clk 0:00:23]}  Kf6 {[%clk 0:00:40]} 38. Rh5 {[%clk 0:00:19]}  h6 {[%clk 0:00:38]} 39. Rf4+ {[%clk 0:00:18]}  Kg6 {[%clk 0:00:35]} 40. Rc5 {[%clk 0:00:18]}  Rb2 {[%clk 0:00:25]} 41. h4 {[%clk 0:00:14]}  Bd7 {[%clk 0:00:21]} 42. Rc7 {[%clk 0:00:11]}  Rd2 {[%clk 0:00:10]} 43. Rxb7 {[%clk 0:00:10]}  Ree2 {[%clk 0:00:09]} 44. g4 {[%clk 0:00:06]}  Rg2+ {[%clk 0:00:08]} 45. Kf1 {[%clk 0:00:07]}  Bxg4 {[%clk 0:00:07]} 46. Rb6+ {[%clk 0:00:05]}  Kh5 {[%clk 0:00:06]} 47. Rc6 {[%clk 0:00:03]}  Bh3 {[%clk 0:00:05]} 48. Rc5+ {[%clk 0:00:02]}  g5 {[%clk 0:00:05]} 49. hxg5 {[%clk 0:00:01]}  Rxg5+ {[%clk 0:00:05]} 0-1


[Site "https://www.chess.com"]

[Event "Titled Tuesday Blitz January 31 Late 2023"]
[White "Mikaelyan, Arman"]
[Black "Klose, Eli"]
[WhiteFideId "13304852"]
[BlackFideId "16242955"]
[WhiteElo "2523"]
[BlackElo "1519"]
[Result "1-0"]
[Round "10"]
[TimeControl "180+2"]
[Date "2023.01.31"]
[WhiteClock "0:01:17"]
[BlackClock "0:01:10"]

1. a3 {[%clk 0:03:00]}  a6 {[%clk 0:02:54]} 2. e4 {[%clk 0:02:58]}  e6 {[%clk 0:02:53]} 3. d4 {[%clk 0:02:58]}  d5 {[%clk 0:02:54]} 4. exd5 {[%clk 0:02:58]}  exd5 {[%clk 0:02:54]} 5. c4 {[%clk 0:02:59]}  Nf6 {[%clk 0:02:52]} 6. Nc3 {[%clk 0:02:58]}  Be7 {[%clk 0:02:51]} 7. Nf3 {[%clk 0:02:59]}  O-O {[%clk 0:02:51]} 8. cxd5 {[%clk 0:02:57]}  Nxd5 {[%clk 0:02:50]} 9. Bd3 {[%clk 0:02:57]}  Bg4 {[%clk 0:02:46]} 10. O-O {[%clk 0:02:52]}  Nc6 {[%clk 0:02:45]} 11. h3 {[%clk 0:02:49]}  Bh5 {[%clk 0:02:28]} 12. Bxh7+ {[%clk 0:02:33]}  Kxh7 {[%clk 0:02:29]} 13. Ng5+ {[%clk 0:02:33]}  Kg6 {[%clk 0:02:23]} 14. Qd3+ {[%clk 0:02:27]}  f5 {[%clk 0:02:21]} 15. Ne6 {[%clk 0:02:27]}  Qd6 {[%clk 0:02:13]} 16. Nxd5 {[%clk 0:02:27]}  Rh8 {[%clk 0:01:58]} 17. Nef4+ {[%clk 0:02:14]}  Kf7 {[%clk 0:01:58]} 18. Qxf5+ {[%clk 0:02:13]}  Kg8 {[%clk 0:01:39]} 19. Nxh5 {[%clk 0:02:09]}  g6 {[%clk 0:01:39]} 20. Nhf6+ {[%clk 0:01:42]}  Bxf6 {[%clk 0:01:37]} 21. Qxf6 {[%clk 0:01:39]}  Qxd5 {[%clk 0:01:28]} 22. Qxg6+ {[%clk 0:01:40]}  Kf8 {[%clk 0:01:29]} 23. Bh6+ {[%clk 0:01:40]}  Rxh6 {[%clk 0:01:28]} 24. Qxh6+ {[%clk 0:01:41]}  Kg8 {[%clk 0:01:29]} 25. Rae1 {[%clk 0:01:37]}  Nxd4 {[%clk 0:01:29]} 26. Re7 {[%clk 0:01:33]}  Nf5 {[%clk 0:01:28]} 27. Qh7+ {[%clk 0:01:17]}  Kf8 {[%clk 0:01:19]} 28. Rd7 {[%clk 0:01:17]}  Qe5 {[%clk 0:01:10]} 29. Qf7# {[%clk 0:01:17]} 1-0


[Site "https://www.chess.com"]

[Event "Titled Tuesday Blitz January 31 Late 2023"]
[White "Jaracz, Pawel"]
[Black "Poltorak, Sebastian"]
[WhiteFideId "1102222"]
[BlackFideId "1199498"]
[WhiteElo "2467"]
[BlackElo "2354"]
[Result "1-0"]
[Round "10"]
[TimeControl "180+2"]
[Date "2023.01.31"]
[WhiteClock "0:00:37"]
[BlackClock "0:00:02"]

1. d4 {[%clk 0:03:00]}  Nf6 {[%clk 0:02:59]} 2. c4 {[%clk 0:03:00]}  g6 {[%clk 0:03:00]} 3. Nc3 {[%clk 0:03:00]}  d5 {[%clk 0:03:00]} 4. Nf3 {[%clk 0:02:57]}  Bg7 {[%clk 0:02:59]} 5. e3 {[%clk 0:02:57]}  O-O {[%clk 0:02:58]} 6. b4 {[%clk 0:02:57]}  b6 {[%clk 0:02:16]} 7. Ba3 {[%clk 0:02:54]}  Bb7 {[%clk 0:02:08]} 8. Rc1 {[%clk 0:02:52]}  Nbd7 {[%clk 0:02:08]} 9. Qb3 {[%clk 0:02:45]}  e6 {[%clk 0:01:48]} 10. Be2 {[%clk 0:02:22]}  Re8 {[%clk 0:01:46]} 11. O-O {[%clk 0:02:21]}  Rc8 {[%clk 0:01:23]} 12. Qa4 {[%clk 0:02:09]}  dxc4 {[%clk 0:00:57]} 13. Rfd1 {[%clk 0:01:44]}  Ra8 {[%clk 0:00:41]} 14. Bxc4 {[%clk 0:01:39]}  a6 {[%clk 0:00:36]} 15. Be2 {[%clk 0:01:35]}  b5 {[%clk 0:00:35]} 16. Qc2 {[%clk 0:01:31]}  Nb6 {[%clk 0:00:34]} 17. e4 {[%clk 0:01:27]}  Rc8 {[%clk 0:00:30]} 18. Bb2 {[%clk 0:01:26]}  c6 {[%clk 0:00:27]} 19. a3 {[%clk 0:01:14]}  Qe7 {[%clk 0:00:27]} 20. e5 {[%clk 0:01:14]}  Nfd5 {[%clk 0:00:26]} 21. Ne4 {[%clk 0:01:14]}  Red8 {[%clk 0:00:27]} 22. Qb3 {[%clk 0:01:06]}  Na4 {[%clk 0:00:23]} 23. Ba1 {[%clk 0:01:02]}  h6 {[%clk 0:00:20]} 24. h4 {[%clk 0:01:01]}  Kh8 {[%clk 0:00:16]} 25. g3 {[%clk 0:01:01]}  Rd7 {[%clk 0:00:11]} 26. Rd2 {[%clk 0:01:00]}  Rf8 {[%clk 0:00:11]} 27. Bd1 {[%clk 0:00:57]}  Nab6 {[%clk 0:00:11]} 28. Qd3 {[%clk 0:00:55]}  Nc4 {[%clk 0:00:09]} 29. Ra2 {[%clk 0:00:53]}  Rc7 {[%clk 0:00:09]} 30. Bb3 {[%clk 0:00:53]}  Ndb6 {[%clk 0:00:09]} 31. Nc5 {[%clk 0:00:52]}  Rd8 {[%clk 0:00:08]} 32. Qe2 {[%clk 0:00:51]}  Rd5 {[%clk 0:00:08]} 33. Bc2 {[%clk 0:00:49]}  Nd7 {[%clk 0:00:08]} 34. Nxb7 {[%clk 0:00:47]}  Rxb7 {[%clk 0:00:08]} 35. Be4 {[%clk 0:00:47]}  Ndb6 {[%clk 0:00:09]} 36. Bxd5 {[%clk 0:00:46]}  cxd5 {[%clk 0:00:09]} 37. Bc3 {[%clk 0:00:46]}  Rc7 {[%clk 0:00:09]} 38. Bd2 {[%clk 0:00:46]}  Bf8 {[%clk 0:00:09]} 39. Bf4 {[%clk 0:00:45]}  Kh7 {[%clk 0:00:08]} 40. Kg2 {[%clk 0:00:45]}  Na4 {[%clk 0:00:07]} 41. Qd3 {[%clk 0:00:45]}  Ra7 {[%clk 0:00:07]} 42. h5 {[%clk 0:00:45]}  Bg7 {[%clk 0:00:05]} 43. Nh4 {[%clk 0:00:45]}  Qe8 {[%clk 0:00:04]} 44. Rh1 {[%clk 0:00:43]}  Rc7 {[%clk 0:00:04]} 45. Rc2 {[%clk 0:00:42]}  Rc6 {[%clk 0:00:02]} 46. g4 {[%clk 0:00:41]}  Nab6 {[%clk 0:00:02]} 47. Nf3 {[%clk 0:00:41]}  Qc8 {[%clk 0:00:02]} 48. hxg6+ {[%clk 0:00:40]}  fxg6 {[%clk 0:00:03]} 49. Bxh6 {[%clk 0:00:39]}  Ne3+ {[%clk 0:00:02]} 50. Bxe3+ {[%clk 0:00:37]} 1-0


[Site "https://www.chess.com"]